fUSD/lending_fUSD_20250615
["ID","MTS","AMOUNT","RATE_DAILY","PERIOD"]
[365833521,1749948640631,-25539.08738093,0.00016999,2]
[365833522,1749948640643,-2045.38843825,0.00016999,2]
[365833523,1749948640654,-2801.1695481,0.00016999,2]
[365833524,1749948640665,-51904.99999999,0.00016999,2]
[365833525,1749948640676,-2092.09,0.00016999,2]
[365833526,1749948640687,-77468.58701324,0.00016999,2]
[365833527,1749948640698,-52475.7377683,0.00016999,2]
[365833528,1749948640707,-300.0,0.00016999,2]
[365833529,1749948640718,-672.91796395,0.00016999,2]
[365833530,1749948640727,-150.0,0.00016999,2]
[365833531,1749948640737,-150.0,0.00016999,2]
[365833532,1749948640746,-150.0,0.00016999,2]
[365833533,1749948640756,-500.0,0.00016999,2]
[365833534,1749948640767,-285.21072972,0.00016999,2]
[365833535,1749948640781,-500.0,0.00016999,2]
[365833536,1749948640799,-150.0,0.00016999,2]
[365833537,1749948640819,-150.0,0.00016999,2]
[365833538,1749948640839,-150.0,0.00016999,2]
[365833539,1749948640858,-150.0,0.00016999,2]
[365833540,1749948640867,-150.0,0.00016999,2]
[365833541,1749948640876,-500.0,0.00016999,2]
[365833542,1749948640885,-150.0,0.00016999,2]
[365833543,1749948640895,-150.0,0.00016999,2]
[365833544,1749948640904,-152.05656481,0.00016999,2]
[365833545,1749948640913,-150.0,0.00016999,2]
[365833546,1749948640922,-150.0,0.00016999,2]
[365833547,1749948640931,-500.0,0.00016999,2]
[365833548,1749948640940,-705.0,0.00016999,2]
[365833549,1749948640950,-150.0,0.00016999,2]
[365833550,1749948640959,-500.0,0.00016999,2]
[365833551,1749948640968,-300.0,0.00016999,2]
[365833552,1749948640977,-150.0,0.00016999,2]
[365833553,1749948640986,-150.0,0.00016999,2]
[365833554,1749948640996,-500.0,0.00016999,2]
[365833555,1749948641005,-945.0,0.00017,2]
[365833556,1749948641015,-3331.0,0.00017,2]
[365833557,1749948641024,-802.0,0.00017,2]
[365833558,1749948641033,-637.0,0.00017,2]
[365833559,1749948641042,-927.0,0.00017,2]
[365833560,1749948641051,-2001.0,0.00017,2]
[365833561,1749948641060,-558.0,0.00017,2]
[365833562,1749948641070,-1276.0,0.00017,2]
[365833563,1749948641079,-590.0,0.00017,2]
[365833564,1749948641089,-1673.0,0.00017,2]
[365833565,1749948641098,-245.0,0.00017,2]
[365833566,1749948641107,-151.0,0.00017,2]
[365833567,1749948641118,-150.0,0.00017,2]
[365833568,1749948641127,-150.0,0.00017,2]
[365833569,1749948641136,-150.0,0.00017,2]
[365833570,1749948641145,-853.0,0.00017,2]
[365833571,1749948641154,-150.0,0.00017,2]
[365833572,1749948641163,-150.0,0.00017,2]
[365833573,1749948641172,-884.0,0.00017,2]
[365833574,1749948641181,-28154.07697322,0.00017,2]
[365833575,1749948641192,-373.92615695,0.00017,2]
[365833576,1749948641203,-1401.6,0.00017,2]
[365833577,1749948641214,-4032.71134052,0.00017,2]
[365833578,1749948641225,-32713.26190504,0.00017,2]
[365833579,1749948641235,-350111.1486573,0.00017,2]
[365833580,1749948641247,-338.10739469,0.00017,2]
[365833581,1749948641269,-31340.15161045,0.00017,2]
[365833582,1749948641280,-2559.0,0.00017,2]
[365833583,1749948641291,-1346.18145632,0.00017,2]
[365833584,1749948641302,-260.96,0.00017,2]
[365833585,1749948641313,-52247.39850326,0.00017,2]
[365833586,1749948641324,-1423.68953834,0.00017,2]
[365833587,1749948641335,-1232.8517027,0.00017,2]
[365833588,1749948641350,-192931.54702738,0.00017,2]
[365833597,1749948642459,-503.951448,0.00017,2]
[365833598,1749948642471,-31357.0,0.00017,2]
[365833599,1749948642515,-167620.18095249,0.00017,2]
[365833600,1749948642526,-25200.0,0.00017,2]
[365833601,1749948642538,-692.175,0.00017,2]
[365833602,1749948642561,-4642.14355235,0.00017,2]
[365833603,1749948642572,-1219.68891031,0.00017,2]
[365833604,1749948642583,-464.504,0.00017,2]
[365833605,1749948642644,-11137.02822368,0.00017,2]
[365833606,1749948642656,-3816.69735758,0.00017,2]
[365833607,1749948642668,-500.0,0.00017,2]
[365833608,1749948642690,-800.82437286,0.00017,2]
[365833609,1749948642702,-6448.28870953,0.00017,2]
[365833610,1749948642713,-1041.0,0.00017,2]
[365833611,1749948642724,-1157.97386792,0.00017,2]
[365833656,1749948645402,-325.56,0.00017,2]
[365833657,1749948645414,-326.57330444,0.00017,2]
[365833658,1749948645425,-5604.94957442,0.00017,2]
[365833659,1749948645457,-418.6,0.00017,2]
[365833660,1749948645469,-766.7451532,0.00017,2]
[365833661,1749948645478,-41319.29884681,0.00017,2]
[365833662,1749948645489,-19816.12860484,0.00017,2]
[365833663,1749948645513,-132211.45581775,0.00017,2]
[365833664,1749948647063,-494.05999998,0.00017,2]
[365833665,1749948647075,-10500.0,0.00017,2]
[365833666,1749948647086,-1865.31907963,0.00017,2]
[365833667,1749948647097,-934.59884037,0.00017,2]
[365833668,1749948647108,-1715.8597862,0.00017,2]
[365833669,1749948647120,-6181.67185506,0.00017,2]
[365833670,1749948647150,-2686.84256684,0.00017,2]
[365833671,1749948930898,150.0,0.00021823,120]
[365833672,1749949050503,150.0,0.00024588,120]
[365833673,1749949099420,500.0,0.00025,120]
[365833674,1749949220063,358.11,0.00013699,2]
[365833677,1749949590621,150.0,0.00022985,120]
[365833679,1749949637034,737.09,0.00013995,2]
[365833704,1749949691869,201.0,0.00014912,2]
[365833714,1749949831641,-595.39,0.00015877,2]
[365833715,1749949831650,-104.61,0.00015897,2]
[365833716,1749949831662,-559.24124623,0.00015897,2]
[365833717,1749949831673,-2.14875377,0.00015897,2]
[365833718,1749949831681,-287.33761497,0.00015912,2]
[365833719,1749949831692,-313.94350589,0.00015912,2]
[365833720,1749949831714,-398.71887914,0.00015912,2]
[365833721,1749949831723,-250.0,0.00015912,2]
[365833722,1749949831732,-500.0,0.00015936,2]
[365833723,1749949831742,-250.0,0.00015952,2]
[365833724,1749949831751,-776.28112086,0.00015993,2]
[365833725,1749949831772,-254.05887914,0.00015993,2]
[365833726,1749949831781,-26.82312439,0.00016005,2]
[365833727,1749949831794,-273.17687561,0.00016005,2]
[365833728,1749949831804,-67.34398125,0.00016017,2]
[365833729,1749949831975,-105.38601875,0.00016017,2]
[365833730,1749949831985,-300.0,0.00016034,2]
[365833731,1749949831994,-527.39,0.00016051,2]
[365833732,1749949832004,-201.0,0.0001613,3]
[365833733,1749949832014,-500.0,0.00016165,2]
[365833734,1749949832024,-737.09,0.00016258,2]
[365833735,1749949832035,-940.0,0.00016469,2]
[365833736,1749949832046,-166.15,0.00016522,2]
[365833738,1749949832056,-1200.0,0.00016539,2]
[365833740,1749949832065,-300.0,0.00016539,2]
[365833743,1749949832074,-833.63237626,0.0001654,2]
[365833746,1749949832085,-1516.83955808,0.0001654,2]
[365833749,1749949832094,-293.0,0.0001654,2]
[365833750,1749949832103,-464.0,0.00016551,2]
[365833752,1749949832112,-170.61,0.00016558,2]
[365833754,1749949832121,-882.202878,0.0001666,2]
[365833756,1749949832129,-300.0,0.00016669,2]
[365833758,1749949832138,-300.0,0.00016669,2]
[365833760,1749949832147,-802.0,0.0001667,2]
[365833762,1749949832157,-637.0,0.0001667,2]
[365833764,1749949832166,-558.0,0.0001667,2]
[365833766,1749949832175,-2002.0,0.0001667,2]
[365833768,1749949832184,-590.0,0.0001667,2]
[365833770,1749949832193,-1276.0,0.0001667,2]
[365833772,1749949832202,-927.0,0.0001667,2]
[365833774,1749949832212,-1673.0,0.0001667,2]
[365833776,1749949832221,-1160.0,0.0001667,2]
[365833778,1749949832231,-7373.91059165,0.0001667,2]
[365833780,1749949832240,-7066.0,0.00016791,2]
[365833782,1749949832250,-4089.0,0.00016791,2]
[365833784,1749949832259,-155.0,0.00016791,2]
[365833787,1749949832269,-853.0,0.00016791,2]
[365833788,1749949832279,-556.0,0.00016869,2]
[365833790,1749949832288,-498.53960802,0.00016895,2]
[365833792,1749949832297,-498.53960798,0.00016896,2]
[365833794,1749949832306,-498.53960798,0.00016896,2]
[365833796,1749949832316,-498.53960798,0.00016897,2]
[365833798,1749949832325,-737.6491,0.00016897,2]
[365833800,1749949832334,-2500.0,0.00016897,2]
[365833802,1749949832343,-808.1121,0.00016897,2]
[365833804,1749949832354,-2076.74091183,0.00016897,2]
[365833806,1749949832363,-498.53960798,0.00016897,2]
[365833808,1749949832373,-2076.7409118,0.00016897,2]
[365833810,1749949832382,-2076.7409118,0.00016898,2]
[365833812,1749949832392,-498.53960798,0.00016898,2]
[365833814,1749949832401,-2076.7409118,0.00016898,2]
[365833816,1749949832411,-500.0,0.00016898,2]
[365833818,1749949832420,-500.0,0.00016898,2]
[365833820,1749949832429,-500.0,0.00016898,2]
[365833822,1749949832439,-500.0,0.00016898,2]
[365833824,1749949832448,-500.0,0.00016898,2]
[365833826,1749949832458,-500.0,0.00016898,2]
[365833828,1749949832467,-500.0,0.00016898,2]
[365833830,1749949832477,-404.82392994,0.00016898,2]
[365833832,1749949832487,-500.0,0.00016898,2]
[365833834,1749949832496,-500.0,0.00016898,2]
[365833836,1749949832505,-500.0,0.00016898,2]
[365833838,1749949832515,-500.0,0.00016898,2]
[365833840,1749949832525,-500.0,0.00016898,2]
[365833842,1749949832534,-500.0,0.00016898,2]
[365833844,1749949832544,-621.31897864,0.00016898,2]
[365833846,1749949832554,-500.0,0.00016898,2]
[365833848,1749949832563,-211.07082636,0.00016898,2]
[365833850,1749949832572,-157.84393353,0.00016898,2]
[365833852,1749949832581,-500.0,0.00016898,2]
[365833854,1749949832591,-500.0,0.00016898,2]
[365833856,1749949832600,-500.0,0.00016898,2]
[365833858,1749949832609,-500.0,0.00016898,2]
[365833860,1749949832618,-500.0,0.00016898,2]
[365833862,1749949832629,-151.22183529,0.00016898,2]
[365833864,1749949832637,-5650.7062,0.00016898,2]
[365833866,1749949832647,-3885.5115,0.00016898,2]
[365833868,1749949832656,-2076.7409118,0.00016898,2]
[365833870,1749949832666,-498.53960798,0.00016898,2]
[365833872,1749949832675,-2076.7409118,0.00016899,2]
[365833874,1749949832684,-498.53960798,0.00016899,2]
[365833876,1749949832694,-23488.0582,0.00016899,2]
[365833878,1749949832702,-595.0532,0.00016899,2]
[365833880,1749949832711,-2076.7409118,0.00016899,2]
[365833882,1749949832720,-2076.7409118,0.00016899,2]
[365833884,1749949832730,-498.53960798,0.00016899,2]
[365833886,1749949832739,-2076.7409118,0.000169,2]
[365833888,1749949832749,-172.57170737,0.000169,2]
[365833890,1749949832758,-391.458,0.000169,2]
[365833892,1749949832768,-2076.7409118,0.000169,2]
[365833894,1749949832778,-1100.95510644,0.000169,2]
[365833896,1749949832788,-4776.65020313,0.000169,2]
[365833898,1749949832797,-498.53960798,0.000169,2]
[365833900,1749949832807,-169.71507828,0.000169,2]
[365833902,1749949832817,-571.82654779,0.00016914,2]
[365833904,1749949832827,-1003.0,0.00016915,2]
[365833906,1749949832836,-940.1277,0.00016959,2]
[365833908,1749949832846,-500.0,0.00016973,2]
[365833910,1749949832857,-500.0,0.00016973,2]
[365833912,1749949832867,-500.0,0.00016973,2]
[365833914,1749949832876,-500.0,0.00016973,2]
[365833916,1749949832886,-341.31091834,0.00016973,2]
[365833918,1749949832895,-500.0,0.00016973,2]
[365833920,1749949832905,-500.0,0.00016973,2]
[365833922,1749949832914,-500.0,0.00016973,2]
[365833924,1749949832924,-151.0,0.00016983,2]
[365833926,1749949832933,-166.32792695,0.00016987,2]
[365833928,1749949832943,-1444.56293679,0.00016988,2]
[365833930,1749949832952,-207.4,0.00016988,2]
[365833932,1749949832966,-151.0,0.0001699,2]
[365833934,1749949832976,-151.0,0.0001699,2]
[365833936,1749949832986,-151.0,0.0001699,2]
[365833938,1749949832997,-151.0,0.0001699,2]
[365833940,1749949833006,-151.0,0.0001699,2]
[365833942,1749949833015,-65.28245244,0.0001699,2]
[365833944,1749949833028,-85.71754756,0.0001699,2]
[365833946,1749949833041,-24840.2408702,0.00016995,2]
[365833948,1749949833051,-8861.5484959,0.00016995,2]
[365833950,1749949833061,-1586.3649884,0.00016995,2]
[365833952,1749949833071,-666.5608986,0.00016995,2]
[365833953,1749949833081,-309.9301629,0.00016995,2]
[365833954,1749949833090,-9178.7050554,0.00016995,2]
[365833955,1749949833099,-444.3739318,0.00016995,2]
[365833956,1749949833109,-494.28,0.00016995,2]
[365833957,1749949833118,-5242.16,0.00016995,2]
[365833958,1749949833128,-500.0,0.00016995,2]
[365833959,1749949833137,-1966.59,0.00016995,2]
[365833960,1749949833146,-732.0,0.00016995,2]
[365833961,1749949833155,-2355.38,0.00016995,2]
[365833962,1749949833519,-2969.67,0.00016995,2]
[365833963,1749949833530,-490.0,0.00016995,2]
[365833964,1749949833540,-490.0,0.00016995,2]
[365833965,1749949833549,-502.16065372,0.00016995,2]
[365833966,1749949833558,-2968.89,0.00016995,2]
[365833967,1749949833568,-2524.85,0.00016995,2]
[365833968,1749949833578,-490.0,0.00016995,2]
[365833969,1749949833587,-490.0,0.00016995,2]
[365833970,1749949833596,-664.9,0.00016995,2]
[365833971,1749949833606,-1765.67,0.00016995,2]
[365833972,1749949833616,-490.0,0.00016995,2]
[365833973,1749949833626,-627.39302874,0.00016995,2]
[365833974,1749949833636,-490.0,0.00016995,2]
[365833975,1749949833646,-2020.09,0.00016995,2]
[365833976,1749949833656,-490.0,0.00016995,2]
[365833977,1749949833667,-1829.62,0.00016995,2]
[365833978,1749949833677,-490.13,0.00016995,2]
[365833979,1749949833689,-490.0,0.00016995,2]
[365833980,1749949833699,-414.06551877,0.00016995,2]
[365833981,1749949833709,-1466.6,0.00016995,2]
[365833982,1749949833720,-3083.14,0.00016995,2]
[365833983,1749949833730,-1863.04,0.00016995,2]
[365833984,1749949833740,-873.5,0.00016995,2]
[365833985,1749949833751,-490.0,0.00016995,2]
[365833986,1749949833761,-14234.83,0.00016995,2]
[365833987,1749949833776,-1201.2,0.00016995,2]
[365833988,1749949833786,-2341.83,0.00016995,2]
[365833989,1749949833797,-1555.08,0.00016995,2]
[365833990,1749949833807,-490.0,0.00016995,2]
[365833991,1749949833817,-2921.25,0.00016995,2]
[365833992,1749949833827,-7043.86,0.00016995,2]
[365833993,1749949833836,-490.0,0.00016995,2]
[365833994,1749949833846,-490.0,0.00016995,2]
[365833995,1749949833856,-408.43025863,0.00016995,2]
[365833996,1749949833867,-490.0,0.00016995,2]
[365833997,1749949833876,-2275.0,0.00016995,2]
[365833998,1749949833886,-490.0,0.00016995,2]
[365833999,1749949833896,-490.0,0.00016996,2]
[365834000,1749949833905,-490.0,0.00016996,2]
[365834001,1749949833915,-490.0,0.00016996,2]
[365834002,1749949833924,-2099.88,0.00016996,2]
[365834003,1749949833933,-490.0,0.00016996,2]
[365834004,1749949833943,-490.0,0.00016996,2]
[365834005,1749949833952,-490.0,0.00016996,2]
[365834006,1749949833967,-490.0,0.00016996,2]
[365834007,1749949833978,-490.0,0.00016996,2]
[365834008,1749949833987,-490.0,0.00016996,2]
[365834009,1749949833997,-490.0,0.00016996,2]
[365834010,1749949834007,-490.0,0.00016996,2]
[365834011,1749949834019,-490.0,0.00016996,2]
[365834012,1749949834028,-490.0,0.00016996,2]
[365834013,1749949834038,-490.0,0.00016996,2]
[365834014,1749949834050,-490.0,0.00016996,2]
[365834015,1749949834059,-490.0,0.00016996,2]
[365834016,1749949834069,-490.0,0.00016996,2]
[365834017,1749949834079,-490.0,0.00016996,2]
[365834018,1749949834088,-490.0,0.00016996,2]
[365834019,1749949834098,-490.0,0.00016996,2]
[365834020,1749949834107,-490.0,0.00016996,2]
[365834021,1749949834117,-490.0,0.00016996,2]
[365834022,1749949834126,-490.0,0.00016996,2]
[365834023,1749949834136,-490.0,0.00016996,2]
[365834024,1749949834146,-490.0,0.00016996,2]
[365834025,1749949834157,-490.0,0.00016996,2]
[365834026,1749949834166,-531.49136145,0.00016996,2]
[365834027,1749949834176,-490.0,0.00016996,2]
[365834028,1749949834185,-490.0,0.00016996,2]
[365834029,1749949834195,-490.0,0.00016996,2]
[365834030,1749949834204,-490.0,0.00016996,2]
[365834031,1749949834214,-311.8649301,0.00016996,2]
[365834032,1749949834224,-490.0,0.00016996,2]
[365834033,1749949834234,-462.0364918,0.00016996,2]
[365834034,1749949834244,-490.0,0.00016996,2]
[365834035,1749949834254,-490.0,0.00016996,2]
[365834036,1749949834263,-490.0,0.00016996,2]
[365834037,1749949834275,-490.0,0.00016996,2]
[365834038,1749949834285,-490.0,0.00016996,2]
[365834039,1749949834295,-490.0,0.00016996,2]
[365834040,1749949834304,-490.0,0.00016996,2]
[365834041,1749949834314,-490.0,0.00016996,2]
[365834042,1749949834323,-490.0,0.00016996,2]
[365834043,1749949834333,-490.0,0.00016996,2]
[365834044,1749949834343,-490.0,0.00016996,2]
[365834045,1749949834352,-490.0,0.00016996,2]
[365834046,1749949834362,-490.0,0.00016996,2]
[365834047,1749949834371,-490.0,0.00016996,2]
[365834048,1749949834381,-490.0,0.00016996,2]
[365834049,1749949834390,-490.0,0.00016996,2]
[365834050,1749949834399,-490.0,0.00016996,2]
[365834051,1749949834408,-490.0,0.00016996,2]
[365834052,1749949834417,-490.0,0.00016996,2]
[365834053,1749949834427,-490.0,0.00016996,2]
[365834054,1749949834436,-490.0,0.00016996,2]
[365834055,1749949834446,-490.23438669,0.00016996,2]
[365834056,1749949834455,-889.05,0.00016996,2]
[365834057,1749949834465,-490.0,0.00016996,2]
[365834058,1749949834474,-490.0,0.00016996,2]
[365834059,1749949834483,-490.0,0.00016996,2]
[365834060,1749949834493,-490.0,0.00016996,2]
[365834061,1749949834502,-490.0,0.00016996,2]
[365834062,1749949834511,-3561.115879,0.00016996,2]
[365834063,1749949834522,-155.510852,0.00016996,2]
[365834064,1749949834531,-490.0,0.00016996,2]
[365834065,1749949834540,-490.0,0.00016996,2]
[365834066,1749949834549,-2410.07,0.00016996,2]
[365834067,1749949834558,-532.75038273,0.00016996,2]
[365834068,1749949834567,-224.153777,0.00016996,2]
[365834069,1749949834576,-160.803186,0.00016996,2]
[365834070,1749949834586,-1893.68,0.00016996,2]
[365834071,1749949834595,-490.0,0.00016996,2]
[365834072,1749949834604,-490.0,0.00016996,2]
[365834073,1749949834614,-3684.02,0.00016996,2]
[365834074,1749949834623,-3814.251629,0.00016996,2]
[365834075,1749949834632,-2629.28,0.00016996,2]
[365834076,1749949834641,-3335.32,0.00016996,2]
[365834077,1749949834650,-677.67,0.00016996,2]
[365834078,1749949834660,-3263.28,0.00016996,2]
[365834079,1749949834669,-3709.72,0.00016996,2]
[365834080,1749949834678,-1225.68,0.00016996,2]
[365834081,1749949834687,-1292.7,0.00016996,2]
[365834082,1749949834696,-952.14,0.00016996,2]
[365834083,1749949834705,-5398.35,0.00016996,2]
[365834084,1749949834714,-490.0,0.00016996,2]
[365834085,1749949834722,-1281.24,0.00016996,2]
[365834086,1749949834731,-2356.7,0.00016996,2]
[365834087,1749949834740,-500.0,0.00016996,2]
[365834088,1749949834749,-399.58453969,0.00016996,2]
[365834089,1749949834758,-3200.39,0.00016996,2]
[365834090,1749949834768,-11917.26,0.00016996,2]
[365834091,1749949834776,-3739.87,0.00016996,2]
[365834092,1749949834786,-699.6,0.00016996,2]
[365834093,1749949834795,-2901.53,0.00016996,2]
[365834094,1749949834805,-402.6337844,0.00016996,2]
[365834095,1749949834814,-490.0,0.00016996,2]
[365834096,1749949834824,-490.87538283,0.00016996,2]
[365834097,1749949834833,-1685.79,0.00016996,2]
[365834098,1749949834843,-7415.11,0.00016996,2]
[365834099,1749949834852,-6394.01,0.00016996,2]
[365834100,1749949834861,-5175.27,0.00016996,2]
[365834101,1749949834870,-873.5,0.00016996,2]
[365834102,1749949834879,-873.5,0.00016996,2]
[365834103,1749949834889,-873.5,0.00016996,2]
[365834104,1749949834899,-2084.52,0.00016996,2]
[365834105,1749949834908,-3054.81,0.00016996,2]
[365834106,1749949834917,-16617.35,0.00016996,2]
[365834107,1749949834926,-16617.35,0.00016996,2]
[365834108,1749949834935,-5252.32,0.00016996,2]
[365834109,1749949834944,-7352.66,0.00016996,2]
[365834110,1749949834954,-5138.87,0.00016996,2]
[365834111,1749949834966,-565.0,0.00016997,2]
[365834112,1749949834975,-490.0,0.00016997,2]
[365834113,1749949834984,-450.78613171,0.00016997,2]
[365834114,1749949834993,-490.0,0.00016997,2]
[365834115,1749949835004,-2487.09,0.00016997,2]
[365834116,1749949835013,-490.0,0.00016997,2]
[365834117,1749949835024,-490.0,0.00016997,2]
[365834118,1749949835035,-639.86,0.00016997,2]
[365834119,1749949835045,-1138.12,0.00016997,2]
[365834120,1749949835054,-490.0,0.00016997,2]
[365834121,1749949835063,-490.0,0.00016997,2]
[365834122,1749949835073,-230.53273278,0.00016997,2]
[365834123,1749949835083,-490.0,0.00016997,2]
[365834124,1749949835093,-490.0,0.00016997,2]
[365834125,1749949835103,-592.76,0.00016997,2]
[365834126,1749949835113,-490.0,0.00016997,2]
[365834127,1749949835122,-490.0,0.00016997,2]
[365834128,1749949835131,-1299.26,0.00016997,2]
[365834129,1749949835141,-497.42,0.00016997,2]
[365834130,1749949835150,-989.66,0.00016997,2]
[365834131,1749949835161,-490.0,0.00016997,2]
[365834132,1749949835172,-490.0,0.00016997,2]
[365834133,1749949835181,-490.0,0.00016997,2]
[365834134,1749949835190,-490.0,0.00016997,2]
[365834135,1749949835200,-490.0,0.00016997,2]
[365834136,1749949835209,-490.0,0.00016997,2]
[365834137,1749949835219,-490.0,0.00016997,2]
[365834138,1749949835228,-917.44,0.00016997,2]
[365834139,1749949835238,-917.44,0.00016997,2]
[365834140,1749949835247,-1671.35,0.00016997,2]
[365834141,1749949835256,-490.0,0.00016997,2]
[365834142,1749949835267,-490.0,0.00016997,2]
[365834143,1749949835277,-490.0,0.00016997,2]
[365834144,1749949835286,-490.0,0.00016997,2]
[365834145,1749949835295,-1609.15,0.00016997,2]
[365834146,1749949835304,-490.0,0.00016997,2]
[365834147,1749949835314,-490.0,0.00016997,2]
[365834148,1749949835323,-490.0,0.00016997,2]
[365834149,1749949835332,-490.0,0.00016997,2]
[365834150,1749949835342,-1003.46,0.00016997,2]
[365834151,1749949835351,-795.31,0.00016997,2]
[365834152,1749949835360,-490.0,0.00016997,2]
[365834153,1749949835370,-267.00822899,0.00016997,2]
[365834154,1749949835379,-490.0,0.00016997,2]
[365834155,1749949835388,-354.80085307,0.00016997,2]
[365834156,1749949835398,-490.0,0.00016997,2]
[365834157,1749949835407,-490.0,0.00016997,2]
[365834158,1749949835416,-500.0,0.00016997,2]
[365834159,1749949835426,-500.0,0.00016997,2]
[365834160,1749949835435,-500.0,0.00016997,2]
[365834161,1749949835444,-490.0,0.00016997,2]
[365834162,1749949835453,-490.0,0.00016997,2]
[365834163,1749949835463,-586.39,0.00016997,2]
[365834164,1749949835472,-638.16,0.00016997,2]
[365834165,1749949835482,-490.0,0.00016997,2]
[365834166,1749949835491,-490.0,0.00016997,2]
[365834167,1749949835500,-490.0,0.00016997,2]
[365834168,1749949835509,-490.0,0.00016997,2]
[365834169,1749949835520,-490.0,0.00016997,2]
[365834170,1749949835529,-490.47970464,0.00016997,2]
[365834171,1749949835539,-1218.68,0.00016997,2]
[365834172,1749949835548,-490.0,0.00016997,2]
[365834173,1749949835558,-490.0,0.00016997,2]
[365834174,1749949835567,-490.0,0.00016997,2]
[365834175,1749949835576,-561.16535425,0.00016997,2]
[365834176,1749949835586,-762.33,0.00016997,2]
[365834177,1749949835596,-490.0,0.00016997,2]
[365834178,1749949835605,-490.0,0.00016997,2]
[365834179,1749949835614,-490.0,0.00016997,2]
[365834180,1749949835624,-490.0,0.00016997,2]
[365834181,1749949835633,-490.0,0.00016997,2]
[365834182,1749949835642,-490.0,0.00016997,2]
[365834183,1749949835651,-490.0,0.00016997,2]
[365834184,1749949835660,-1160.6,0.00016997,2]
[365834185,1749949835671,-427.97040935,0.00016997,2]
[365834186,1749949835681,-490.0,0.00016997,2]
[365834187,1749949835692,-1862.84,0.00016997,2]
[365834188,1749949835701,-490.0,0.00016997,2]
[365834189,1749949835710,-490.0,0.00016997,2]
[365834190,1749949835719,-490.0,0.00016997,2]
[365834191,1749949835729,-490.0,0.00016997,2]
[365834192,1749949835738,-1840.84,0.00016997,2]
[365834193,1749949835747,-1934.62,0.00016997,2]
[365834194,1749949835756,-490.0,0.00016997,2]
[365834195,1749949835766,-490.0,0.00016997,2]
[365834196,1749949835775,-490.0,0.00016997,2]
[365834197,1749949835784,-926.81,0.00016997,2]
[365834198,1749949835795,-490.0,0.00016997,2]
[365834199,1749949835805,-740.17,0.00016997,2]
[365834200,1749949835814,-998.04,0.00016997,2]
[365834201,1749949835823,-490.0,0.00016997,2]
[365834202,1749949835833,-490.0,0.00016997,2]
[365834203,1749949835843,-490.0,0.00016997,2]
[365834204,1749949835852,-490.0,0.00016997,2]
[365834205,1749949835861,-490.0,0.00016997,2]
[365834206,1749949835870,-490.0,0.00016997,2]
[365834207,1749949835879,-490.0,0.00016997,2]
[365834208,1749949835888,-490.0,0.00016997,2]
[365834209,1749949835897,-1147.69,0.00016997,2]
[365834210,1749949835906,-490.0,0.00016997,2]
[365834211,1749949835915,-490.0,0.00016997,2]
[365834212,1749949835924,-490.0,0.00016997,2]
[365834213,1749949835933,-399.25,0.00016997,2]
[365834214,1749949835942,-490.0,0.00016997,2]
[365834215,1749949835951,-490.0,0.00016997,2]
[365834216,1749949835964,-490.0,0.00016997,2]
[365834217,1749949835974,-490.0,0.00016997,2]